fUSD/lending_fUSD_20240331
["ID","MTS","AMOUNT","RATE_DAILY","PERIOD"]
[321089339,1711890656418,-518.61548325,0.00055342,120]
[321089340,1711890656428,-523.81624819,0.00055342,120]
[321089341,1711890656439,-500.0,0.00055342,120]
[321089342,1711890656449,-641.87961156,0.00055342,120]
[321089343,1711890656460,-553.4960608,0.00055342,120]
[321089344,1711890656470,-500.0,0.00055342,2]
[321089345,1711890656480,-500.0,0.00055342,120]
[321089346,1711890656494,-500.0,0.00055342,120]
[321089347,1711890656504,-534.25041763,0.00055342,120]
[321089348,1711890656514,-500.0,0.00055342,120]
[321089349,1711890656669,-500.0,0.00055342,120]
[321089350,1711890656681,-539.08097369,0.00055342,120]
[321089351,1711890656696,-531.64151344,0.00055342,120]
[321089352,1711890656706,-621.06,0.00055342,120]
[321089353,1711890656716,-529.33136352,0.00055342,120]
[321089354,1711890656726,-507.87810587,0.00055342,120]
[321089355,1711890656736,-519.2207192,0.00055342,120]
[321089356,1711890656746,-216.18324552,0.00055342,120]
[321089357,1711890656755,-500.0,0.00055342,120]
[321089358,1711890656765,-515.25966746,0.00055342,120]
[321089359,1711890656775,-500.0,0.00055342,120]
[321089360,1711890656785,-500.0,0.00055342,120]
[321089361,1711890656795,-404.94,0.00055342,120]
[321089362,1711890656805,-514.28141937,0.00055342,120]
[321089363,1711890656815,-654.97,0.00055342,120]
[321089364,1711890656825,-500.0,0.00055342,120]
[321089365,1711890656834,-500.0,0.00055342,120]
[321089366,1711890656843,-545.82879251,0.00055342,120]
[321089367,1711890656853,-500.0,0.00055342,120]
[321089368,1711890656863,-500.0,0.00055342,120]
[321089369,1711890656872,-500.0,0.00055342,120]
[321089370,1711890656882,-499.999998,0.00055342,120]
[321089371,1711890656891,-1000.0,0.00055342,120]
[321089372,1711890656901,-150.0,0.00055342,120]
[321089373,1711890656910,-500.0,0.00055342,120]
[321089374,1711890656919,-500.0,0.00055342,120]
[321089375,1711890656929,-242.15,0.00055342,120]
[321089376,1711890656940,-500.0,0.00055342,120]
[321089377,1711890656949,-465.21,0.00055342,120]
[321089378,1711890656958,-500.0,0.00055342,2]
[321089379,1711890656967,-178.3,0.00055342,120]
[321089380,1711890656976,-500.0,0.00055342,120]
[321089381,1711890656985,-1139.05,0.00055342,120]
[321089382,1711890656994,-500.0,0.00055342,120]
[321089383,1711890657003,-500.0,0.00055342,120]
[321089384,1711890657013,-500.0,0.00055342,120]
[321089385,1711890657023,-500.0,0.00055342,120]
[321089386,1711890657032,-1647.33,0.00055342,120]
[321089387,1711890657042,-500.0,0.00055342,120]
[321089388,1711890657051,-395.01,0.00055342,120]
[321089389,1711890657060,-2280.35,0.00055342,120]
[321089390,1711890657069,-1969.2,0.00055342,120]
[321089391,1711890657079,-170.14,0.00055342,120]
[321089392,1711890657088,-500.0,0.00055342,120]
[321089393,1711890657098,-11044.72,0.00055342,120]
[321089394,1711890657107,-1309.04,0.00055342,120]
[321089395,1711890657117,-2277.86,0.00055342,120]
[321089396,1711890657126,-2650.98,0.00055342,120]
[321089397,1711890657135,-500.0,0.00055342,120]
[321089398,1711890657144,-3032.14,0.00055342,120]
[321089399,1711890657153,-492.71,0.00055342,120]
[321089400,1711890657163,-500.0,0.00055342,120]
[321089401,1711890657172,-978.66,0.00055342,120]
[321089402,1711890657181,-1119.85,0.00055342,120]
[321089403,1711890657191,-500.0,0.00055342,120]
[321089404,1711890657200,-500.0,0.00055342,120]
[321089405,1711890657209,-150.31,0.00055342,7]
[321089406,1711890657218,-500.0,0.00055342,120]
[321089407,1711890657227,-641.78,0.00055342,120]
[321089408,1711890657236,-500.0,0.00055342,120]
[321089409,1711890657245,-7777.83,0.00055342,120]
[321089410,1711890657254,-1346.83,0.00055342,120]
[321089411,1711890657263,-2591.83,0.00055342,120]
[321089412,1711890657273,-500.0,0.00055342,120]
[321089413,1711890657282,-2450.66,0.00055342,120]
[321089414,1711890657291,-595.24,0.00055342,120]
[321089415,1711890657301,-5656.68,0.00055342,120]
[321089416,1711890657310,-588.1,0.00055342,16]
[321089417,1711890657320,-1878.45,0.00055342,120]
[321089418,1711890657329,-500.0,0.00055342,120]
[321089419,1711890657339,-500.0,0.00055342,120]
[321089420,1711890657349,-1202.32,0.00055342,120]
[321089421,1711890657359,-2751.89,0.00055342,120]
[321089422,1711890657368,-500.0,0.00055342,120]
[321089423,1711890657378,-500.0,0.00055342,120]
[321089424,1711890657388,-500.0,0.00055342,120]
[321089425,1711890657397,-500.0,0.00055342,120]
[321089426,1711890657407,-500.0,0.00055342,120]
[321089427,1711890657416,-3264.01,0.00055342,120]
[321089428,1711890657426,-500.0,0.00055342,120]
[321089429,1711890657435,-500.0,0.00055342,120]
[321089430,1711890657445,-500.0,0.00055342,120]
[321089431,1711890657455,-1852.77,0.00055342,120]
[321089432,1711890657464,-1531.24,0.00055342,120]
[321089433,1711890657473,-500.0,0.00055342,120]
[321089434,1711890657482,-1444.64,0.00055342,120]
[321089435,1711890657492,-5674.98,0.00055342,120]
[321089436,1711890657502,-962.6,0.00055342,120]
[321089437,1711890657514,-1699.03,0.00055342,120]
[321089438,1711890657523,-500.0,0.00055342,120]
[321089439,1711890657534,-6457.47,0.00055342,120]
[321089440,1711890657543,-1686.23,0.00055342,120]
[321089441,1711890657552,-537.44488113,0.00055342,120]
[321089442,1711890657561,-500.0,0.00055342,120]
[321089443,1711890657571,-500.0,0.00055342,120]
[321089444,1711890657581,-500.0,0.00055342,120]
[321089445,1711890657592,-500.0,0.00055342,120]
[321089446,1711890657601,-10031.1,0.00055342,120]
[321089447,1711890657611,-2964.31,0.00055342,120]
[321089448,1711890657621,-500.0,0.00055342,120]
[321089449,1711890657630,-500.0,0.00055342,120]
[321089450,1711890657640,-255.51,0.00055342,120]
[321089451,1711890657650,-500.0,0.00055342,120]
[321089452,1711890657659,-500.0,0.00055342,120]
[321089453,1711890657668,-1738.4,0.00055342,120]
[321089454,1711890657677,-1786.68,0.00055342,120]
[321089455,1711890657688,-500.0,0.00055342,120]
[321089456,1711890657697,-500.0,0.00055342,120]
[321089457,1711890657707,-500.0,0.00055342,120]
[321089458,1711890657716,-1500.14,0.00055342,120]
[321089459,1711890657729,-562.17,0.00055342,120]
[321089460,1711890657738,-693.94,0.00055342,120]
[321089461,1711890657747,-2517.9,0.00055342,120]
[321089462,1711890657757,-500.0,0.00055342,120]
[321089463,1711890657767,-500.0,0.00055342,120]
[321089464,1711890657776,-500.0,0.00055342,120]
[321089465,1711890657786,-4170.51,0.00055342,120]
[321089466,1711890657796,-500.0,0.00055342,120]
[321089467,1711890657805,-811.03,0.00055342,120]
[321089468,1711890657816,-500.0,0.00055342,120]
[321089469,1711890657826,-500.0,0.00055342,120]
[321089470,1711890657836,-2488.29,0.00055342,120]
[321089471,1711890657846,-500.0,0.00055342,120]
[321089472,1711890657856,-559.28,0.00055342,120]
[321089473,1711890657865,-500.0,0.00055342,120]
[321089474,1711890657875,-14317.17,0.00055342,120]
[321089475,1711890657884,-1685.81,0.00055342,120]
[321089476,1711890657894,-1854.38,0.00055342,120]
[321089477,1711890657903,-500.0,0.00055342,120]
[321089478,1711890657912,-500.0,0.00055342,120]
[321089479,1711890657919,-403.4122126,0.00055342,120]
[321089480,1711890657928,-12588.85,0.00055342,120]
[321089481,1711890657939,-500.0,0.00055342,120]
[321089482,1711890657947,-1750.28,0.00055342,120]
[321089483,1711890657956,-500.0,0.00055342,120]
[321089484,1711890657964,-3585.51,0.00055342,21]
[321089485,1711890657973,-500.0,0.00055342,120]
[321089486,1711890657981,-1112.33,0.00055342,120]
[321089487,1711890657990,-267.41,0.00055342,120]
[321089488,1711890657999,-500.0,0.00055342,120]
[321089489,1711890658009,-524.87,0.00055342,120]
[321089490,1711890658018,-1107.53,0.00055342,120]
[321089491,1711890658027,-500.0,0.00055342,120]
[321089492,1711890658036,-500.0,0.00055342,120]
[321089493,1711890658045,-500.0,0.00055342,120]
[321089494,1711890658054,-500.0,0.00055342,120]
[321089495,1711890658064,-500.0,0.00055342,120]
[321089496,1711890658073,-1340.14,0.00055342,120]
[321089497,1711890658081,-1373.29,0.00055342,120]
[321089498,1711890658091,-500.0,0.00055342,120]
[321089499,1711890658100,-500.0,0.00055342,120]
[321089500,1711890658109,-500.0,0.00055342,120]
[321089501,1711890658119,-163.36,0.000554,30]
[321089502,1711890658128,-998.54,0.00055475,2]
[321089503,1711890658137,-151.0,0.00055479,120]
[321089504,1711890658146,-569.30305,0.0005555,75]
[321089505,1711890658156,-500.0,0.00055616,120]
[321089506,1711890658164,-500.0,0.00055616,120]
[321089507,1711890658173,-311.96922112,0.00055616,120]
[321089508,1711890658182,-520.24709778,0.00055616,120]
[321089509,1711890658193,-520.91485876,0.00055616,120]
[321089510,1711890658202,-500.0,0.00055616,120]
[321089511,1711890658211,-500.0,0.00055616,2]
[321089512,1711890658218,-654.97,0.00055616,120]
[321089513,1711890658226,-520.00276644,0.00055616,120]
[321089514,1711890658235,-500.0,0.00055616,120]
[321089515,1711890658244,-500.0,0.00055616,120]
[321089516,1711890658253,-310.22120263,0.00055616,120]
[321089517,1711890658262,-181.78739878,0.00055616,120]
[321089518,1711890658271,-1000.0,0.00055616,120]
[321089519,1711890658279,-150.0,0.00055616,120]
[321089520,1711890658288,-500.0,0.00055616,120]
[321089521,1711890658298,-500.0,0.00055616,120]
[321089522,1711890658307,-500.0,0.00055616,120]
[321089523,1711890658316,-500.0,0.00055616,2]
[321089524,1711890658325,-500.0,0.00055616,120]
[321089525,1711890658334,-1139.05,0.00055616,120]
[321089526,1711890658343,-500.0,0.00055616,120]
[321089527,1711890658352,-500.0,0.00055616,120]
[321089528,1711890658362,-538.03985348,0.00055616,120]
[321089529,1711890658371,-500.0,0.00055616,120]
[321089530,1711890658381,-1647.33,0.00055616,120]
[321089531,1711890658390,-500.0,0.00055616,120]
[321089532,1711890658398,-2280.35,0.00055616,120]
[321089533,1711890658407,-1969.2,0.00055616,120]
[321089534,1711890658416,-500.0,0.00055616,120]
[321089535,1711890658425,-11044.72,0.00055616,120]
[321089536,1711890658434,-1309.04,0.00055616,120]
[321089537,1711890658445,-2277.86,0.00055616,120]
[321089538,1711890658455,-2650.98,0.00055616,120]
[321089539,1711890658464,-183.33,0.00055616,120]
[321089540,1711890658473,-3032.14,0.00055616,120]
[321089541,1711890658482,-500.0,0.00055616,120]
[321089542,1711890658492,-978.66,0.00055616,120]
[321089543,1711890658502,-1119.85,0.00055616,120]
[321089544,1711890658514,-500.0,0.00055616,120]
[321089545,1711890658524,-500.0,0.00055616,120]
[321089546,1711890658532,-500.0,0.00055616,120]
[321089547,1711890658542,-500.0,0.00055616,120]
[321089548,1711890658551,-7777.83,0.00055616,120]
[321089549,1711890658561,-1346.83,0.00055616,120]
[321089550,1711890658570,-2591.83,0.00055616,120]
[321089551,1711890658580,-500.0,0.00055616,120]
[321089552,1711890658590,-2450.66,0.00055616,120]
[321089553,1711890658600,-595.24,0.00055616,120]
[321089554,1711890658609,-5656.68,0.00055616,120]
[321089555,1711890658618,-588.1,0.00055616,16]
[321089556,1711890658627,-1878.45,0.00055616,120]
[321089557,1711890658636,-500.0,0.00055616,120]
[321089558,1711890658645,-500.0,0.00055616,120]
[321089559,1711890658655,-1202.32,0.00055616,120]
[321089560,1711890658664,-2751.89,0.00055616,120]
[321089561,1711890658674,-500.0,0.00055616,120]
[321089562,1711890658684,-500.0,0.00055616,120]
[321089563,1711890658694,-500.0,0.00055616,120]
[321089564,1711890658703,-500.0,0.00055616,120]
[321089565,1711890658713,-500.0,0.00055616,120]
[321089566,1711890658722,-3264.01,0.00055616,120]
[321089567,1711890658731,-500.0,0.00055616,120]
[321089568,1711890658741,-500.0,0.00055616,120]
[321089569,1711890658750,-500.0,0.00055616,120]
[321089570,1711890658759,-1852.77,0.00055616,120]
[321089571,1711890658769,-1531.24,0.00055616,120]
[321089572,1711890658778,-500.0,0.00055616,120]
[321089573,1711890658787,-1444.64,0.00055616,120]
[321089574,1711890658796,-5674.98,0.00055616,120]
[321089575,1711890658806,-962.6,0.00055616,120]
[321089576,1711890658815,-1699.03,0.00055616,120]
[321089577,1711890658825,-500.0,0.00055616,120]
[321089578,1711890658834,-6457.47,0.00055616,120]
[321089579,1711890658843,-1686.23,0.00055616,120]
[321089580,1711890658852,-500.0,0.00055616,120]
[321089581,1711890658861,-500.0,0.00055616,120]
[321089582,1711890658872,-10031.1,0.00055616,120]
[321089583,1711890658883,-500.0,0.00055616,120]
[321089584,1711890658892,-2964.31,0.00055616,120]
[321089585,1711890658901,-500.0,0.00055616,120]
[321089586,1711890658910,-500.0,0.00055616,120]
[321089587,1711890658919,-1738.4,0.00055616,120]
[321089588,1711890658928,-1786.68,0.00055616,120]
[321089589,1711890658938,-500.0,0.00055616,120]
[321089590,1711890658947,-500.0,0.00055616,120]
[321089591,1711890658956,-1500.14,0.00055616,120]
[321089592,1711890658965,-562.17,0.00055616,120]
[321089593,1711890658974,-693.94,0.00055616,120]
[321089594,1711890658983,-2517.9,0.00055616,120]
[321089595,1711890658992,-500.0,0.00055616,120]
[321089596,1711890659001,-500.0,0.00055616,120]
[321089597,1711890659010,-500.0,0.00055616,120]
[321089598,1711890659019,-4170.51,0.00055616,120]
[321089599,1711890659028,-500.0,0.00055616,120]
[321089600,1711890659038,-811.03,0.00055616,120]
[321089601,1711890659048,-500.0,0.00055616,120]
[321089602,1711890659058,-500.0,0.00055616,120]
[321089603,1711890659068,-2488.29,0.00055616,120]
[321089604,1711890659077,-500.0,0.00055616,120]
[321089605,1711890659086,-559.28,0.00055616,120]
[321089606,1711890659094,-260.62329326,0.00055616,120]
[321089607,1711890659103,-14317.17,0.00055616,120]
[321089608,1711890659113,-1685.81,0.00055616,120]
[321089609,1711890659122,-500.0,0.00055616,120]
[321089610,1711890659131,-1854.38,0.00055616,120]
[321089611,1711890659140,-500.0,0.00055616,120]
[321089612,1711890659149,-12588.85,0.00055616,120]
[321089613,1711890659158,-500.0,0.00055616,120]
[321089614,1711890659168,-1750.28,0.00055616,120]
[321089615,1711890659177,-500.0,0.00055616,120]
[321089616,1711890659187,-3585.51,0.00055616,21]
[321089617,1711890659196,-500.0,0.00055616,120]
[321089618,1711890659205,-1112.33,0.00055616,120]
[321089619,1711890659214,-450.09,0.00055616,120]
[321089620,1711890659223,-524.87,0.00055616,120]
[321089621,1711890659232,-1107.53,0.00055616,120]
[321089622,1711890659240,-500.0,0.00055616,120]
[321089623,1711890659249,-500.0,0.00055616,120]
[321089624,1711890659258,-500.0,0.00055616,120]
[321089625,1711890659268,-500.0,0.00055616,120]
[321089626,1711890659278,-500.0,0.00055616,120]
[321089627,1711890659288,-1340.14,0.00055616,120]
[321089628,1711890659297,-1373.29,0.00055616,120]
[321089629,1711890659307,-500.0,0.00055616,120]
[321089630,1711890659318,-382.0,0.00055648,30]
[321089631,1711890659329,-151.0,0.00055662,2]
[321089632,1711890659338,-299.99999802,0.000557,30]
[321089633,1711890659349,-998.54,0.0005574,2]
[321089634,1711890659359,-308.78,0.0005582,2]
[321089635,1711890659369,-209.95555556,0.00055836,120]
[321089636,1711890659378,-761.9569339,0.00055852,2]
[321089637,1711890659389,-160.52748431,0.0005588,120]
[321089638,1711890659399,-500.0,0.0005589,120]
[321089639,1711890659408,-500.0,0.0005589,120]
[321089640,1711890659417,-500.0,0.0005589,120]
[321089641,1711890659426,-500.0,0.0005589,120]
[321089642,1711890659434,-500.0,0.0005589,2]
[321089643,1711890659445,-654.97,0.0005589,120]
[321089644,1711890659454,-622.67341861,0.0005589,120]
[321089645,1711890659463,-1000.0,0.0005589,120]
[321089646,1711890659471,-150.0,0.0005589,120]
[321089647,1711890659481,-500.0,0.0005589,120]
[321089648,1711890659491,-500.0,0.0005589,120]
[321089649,1711890659499,-500.0,0.0005589,120]
[321089650,1711890659509,-500.0,0.0005589,2]
[321089651,1711890659519,-500.0,0.0005589,120]
[321089652,1711890659529,-1139.05,0.0005589,120]
[321089653,1711890659538,-500.0,0.0005589,120]
[321089654,1711890659547,-500.0,0.0005589,120]
[321089655,1711890659557,-500.0,0.0005589,120]
[321089656,1711890659566,-1647.33,0.0005589,120]
[321089657,1711890659575,-500.0,0.0005589,120]
[321089658,1711890659585,-2280.35,0.0005589,120]
[321089659,1711890659595,-1969.2,0.0005589,120]
[321089660,1711890659604,-500.0,0.0005589,120]
[321089661,1711890659613,-11044.72,0.0005589,120]
[321089662,1711890659622,-1309.04,0.0005589,120]
[321089663,1711890659631,-2277.86,0.0005589,120]
[321089664,1711890659640,-2650.98,0.0005589,120]
[321089665,1711890659649,-3032.14,0.0005589,120]
[321089666,1711890659658,-1649.81,0.0005589,120]
[321089667,1711890659667,-500.0,0.0005589,120]
[321089668,1711890659677,-978.66,0.0005589,120]
[321089669,1711890659687,-1119.85,0.0005589,120]
[321089670,1711890659696,-500.0,0.0005589,120]
[321089671,1711890659705,-251.976457,0.0005589,120]
[321089672,1711890659714,-500.0,0.0005589,120]
[321089673,1711890659723,-251.976457,0.0005589,120]
[321089674,1711890659732,-500.0,0.0005589,120]
[321089675,1711890659741,-500.0,0.0005589,120]
[321089676,1711890659751,-7777.83,0.0005589,120]
[321089677,1711890659760,-1346.83,0.0005589,120]
[321089678,1711890659769,-2591.83,0.0005589,120]
[321089679,1711890659777,-500.0,0.0005589,120]
[321089680,1711890659922,-2450.66,0.0005589,120]
[321089681,1711890659932,-595.24,0.0005589,120]
[321089682,1711890659944,-5656.68,0.0005589,120]
[321089683,1711890659954,-1878.45,0.0005589,120]
[321089684,1711890659963,-588.1,0.0005589,16]
[321089685,1711890659973,-500.0,0.0005589,120]
[321089686,1711890659982,-500.0,0.0005589,120]
[321089687,1711890659991,-1202.32,0.0005589,120]
[321089688,1711890660000,-2751.89,0.0005589,120]
[321089689,1711890660010,-500.0,0.0005589,120]
[321089690,1711890660019,-500.0,0.0005589,120]
[321089691,1711890660029,-500.0,0.0005589,120]
[321089692,1711890660038,-500.0,0.0005589,120]
[321089693,1711890660048,-500.0,0.0005589,120]
[321089694,1711890660057,-3264.01,0.0005589,120]
[321089695,1711890660067,-500.0,0.0005589,120]
[321089696,1711890660077,-500.0,0.0005589,120]
[321089697,1711890660087,-500.0,0.0005589,120]
[321089698,1711890660097,-1852.77,0.0005589,120]
[321089699,1711890660107,-1531.24,0.0005589,120]
[321089700,1711890660116,-500.0,0.0005589,120]
[321089701,1711890660125,-1444.64,0.0005589,120]
[321089702,1711890660134,-5674.98,0.0005589,120]
[321089703,1711890660144,-962.6,0.0005589,120]
[321089704,1711890660153,-1699.03,0.0005589,120]
[321089705,1711890660162,-500.0,0.0005589,120]
[321089706,1711890660171,-6457.47,0.0005589,120]
[321089707,1711890660180,-1686.23,0.0005589,120]
[321089708,1711890660191,-500.0,0.0005589,120]
[321089709,1711890660201,-10031.1,0.0005589,120]
[321089710,1711890660210,-500.0,0.0005589,120]
[321089711,1711890660219,-2964.31,0.0005589,120]
[321089712,1711890660229,-500.0,0.0005589,120]
[321089713,1711890660239,-500.0,0.0005589,120]
[321089714,1711890660248,-1738.4,0.0005589,120]
[321089715,1711890660257,-1786.68,0.0005589,120]
[321089716,1711890660267,-500.0,0.0005589,120]
[321089717,1711890660277,-500.0,0.0005589,120]
[321089718,1711890660286,-1500.14,0.0005589,120]
[321089719,1711890660295,-562.17,0.0005589,120]
[321089720,1711890660305,-693.94,0.0005589,120]
[321089721,1711890660315,-2517.9,0.0005589,120]
[321089722,1711890660324,-500.0,0.0005589,120]
[321089723,1711890660335,-500.0,0.0005589,120]
[321089724,1711890660344,-500.0,0.0005589,120]
[321089725,1711890660354,-4170.51,0.0005589,120]
[321089726,1711890660364,-500.0,0.0005589,120]
[321089727,1711890660374,-811.03,0.0005589,120]
[321089728,1711890660383,-482.0,0.0005589,120]
[321089729,1711890660393,-500.0,0.0005589,120]
[321089730,1711890660403,-2488.29,0.0005589,120]
[321089731,1711890660413,-500.0,0.0005589,120]
[321089732,1711890660422,-151.0,0.0005589,120]
[321089733,1711890660431,-559.28,0.0005589,120]
[321089734,1711890660442,-14317.17,0.0005589,120]
[321089735,1711890660451,-1685.81,0.0005589,120]
[321089736,1711890660461,-1854.38,0.0005589,120]
[321089737,1711890660470,-500.0,0.0005589,120]
[321089738,1711890660480,-500.0,0.0005589,120]
[321089739,1711890660490,-12588.85,0.0005589,120]
[321089740,1711890660501,-500.0,0.0005589,120]
[321089741,1711890660510,-1750.28,0.0005589,120]
[321089742,1711890660519,-500.0,0.0005589,120]
[321089743,1711890660529,-3585.51,0.0005589,21]
[321089744,1711890660538,-500.0,0.0005589,120]
[321089745,1711890660548,-1112.33,0.0005589,120]
[321089746,1711890660557,-524.87,0.0005589,120]
[321089747,1711890660569,-1107.53,0.0005589,120]
[321089748,1711890660579,-500.0,0.0005589,120]
[321089749,1711890660588,-500.0,0.0005589,120]
[321089750,1711890660597,-500.0,0.0005589,120]
[321089751,1711890660606,-500.0,0.0005589,120]
[321089752,1711890660616,-500.0,0.0005589,120]
[321089753,1711890660625,-1340.14,0.0005589,120]
[321089754,1711890660635,-151.0,0.0005589,120]
[321089755,1711890660644,-362.58175965,0.0005589,120]
[321089756,1711890660654,-200.0,0.00055987,3]
[321089757,1711890660663,-100000.0,0.00056,56]
[321089758,1711890660672,-561.63373842,0.00056,120]
[321089759,1711890660682,-758.3889,0.00056,120]
[321089760,1711890660693,-153.93,0.00056,90]
[321089761,1711890660702,-150.0,0.00056,120]
[321089762,1711890660710,-10257.51159968,0.00056,120]
[321089763,1711890660720,-338.43,0.0005604,2]
[321089764,1711890660729,-478.04622859,0.00056164,120]
[321089765,1711890660738,-500.0,0.00056164,120]
[321089766,1711890660747,-500.0,0.00056164,120]
[321089767,1711890660757,-500.0,0.00056164,2]
[321089768,1711890660766,-654.97,0.00056164,120]
[321089769,1711890660775,-1000.0,0.00056164,120]
[321089770,1711890660784,-178.61361359,0.00056164,120]
[321089771,1711890660793,-500.0,0.00056164,120]
[321089772,1711890660803,-500.0,0.00056164,120]
[321089773,1711890660812,-428.30610637,0.00056164,120]
[321089774,1711890660822,-500.0,0.00056164,2]
[321089775,1711890660831,-500.0,0.00056164,120]
[321089776,1711890660841,-1139.05,0.00056164,120]
[321089777,1711890660850,-500.0,0.00056164,120]
[321089778,1711890660860,-500.0,0.00056164,120]
[321089779,1711890660869,-500.0,0.00056164,120]
[321089780,1711890660878,-1647.33,0.00056164,120]
[321089781,1711890660887,-500.0,0.00056164,120]
[321089782,1711890660896,-2280.35,0.00056164,120]
[321089783,1711890660906,-1969.2,0.00056164,120]
[321089784,1711890660914,-500.0,0.00056164,120]
[321089785,1711890660923,-11044.72,0.00056164,120]
[321089786,1711890660932,-1309.04,0.00056164,120]
[321089787,1711890660943,-2277.86,0.00056164,120]
[321089788,1711890660952,-2650.98,0.00056164,120]
[321089789,1711890660961,-3032.14,0.00056164,120]
[321089790,1711890660970,-486.75881246,0.00056164,120]
[321089791,1711890660979,-978.66,0.00056164,120]
[321089792,1711890660988,-1119.85,0.00056164,120]
[321089793,1711890660997,-500.0,0.00056164,120]
[321089794,1711890661006,-500.0,0.00056164,120]
[321089795,1711890661015,-500.0,0.00056164,120]
[321089796,1711890661025,-500.0,0.00056164,120]
[321089797,1711890661035,-7777.83,0.00056164,120]
[321089798,1711890661044,-1346.83,0.00056164,120]
[321089799,1711890661054,-2591.83,0.00056164,120]
[321089800,1711890661063,-500.0,0.00056164,120]
[321089801,1711890661073,-2450.66,0.00056164,120]
[321089802,1711890661082,-595.24,0.00056164,120]
[321089803,1711890661091,-5656.68,0.00056164,120]
[321089804,1711890661100,-1878.45,0.00056164,120]
[321089805,1711890661109,-588.1,0.00056164,16]
[321089806,1711890661118,-500.0,0.00056164,120]
[321089807,1711890661128,-500.0,0.00056164,120]
[321089808,1711890661138,-1202.32,0.00056164,120]
[321089809,1711890661148,-2751.89,0.00056164,120]
[321089810,1711890661158,-500.0,0.00056164,120]
[321089811,1711890661169,-500.0,0.00056164,120]
[321089812,1711890661180,-500.0,0.00056164,120]
[321089813,1711890661194,-179.32745863,0.00056164,120]
[321089814,1711890661207,-500.0,0.00056164,120]
[321089815,1711890661220,-3264.01,0.00056164,120]
[321089816,1711890661232,-500.0,0.00056164,120]
[321089817,1711890661242,-500.0,0.00056164,120]
[321089818,1711890661253,-500.0,0.00056164,120]
[321089819,1711890661264,-1852.77,0.00056164,120]
[321089820,1711890661276,-1531.24,0.00056164,120]
[321089821,1711890661288,-500.0,0.00056164,120]
[321089822,1711890661299,-1444.64,0.00056164,120]
[321089823,1711890661310,-5674.98,0.00056164,120]
[321089824,1711890661322,-962.6,0.00056164,120]
[321089825,1711890661333,-1699.03,0.00056164,120]
[321089826,1711890661345,-500.0,0.00056164,120]
[321089827,1711890661355,-6457.47,0.00056164,120]
[321089828,1711890661366,-1686.23,0.00056164,120]
[321089829,1711890661377,-500.0,0.00056164,120]
[321089830,1711890661389,-500.0,0.00056164,120]
[321089831,1711890661399,-10031.1,0.00056164,120]
[321089832,1711890661410,-2964.31,0.00056164,120]
[321089833,1711890661422,-500.0,0.00056164,120]
[321089834,1711890661433,-500.0,0.00056164,120]
[321089835,1711890661447,-1738.4,0.00056164,120]
[321089836,1711890661457,-1786.68,0.00056164,120]
[321089837,1711890661467,-500.0,0.00056164,120]
[321089838,1711890661476,-462.13,0.00056164,120]